bitfinex-derivatives/quotes_SOLF0:USTF0_20250127
["timestamp","ask_amount","ask_price","bid_price","bid_amount"]
[1737970769978,37.38062312,225.72,225.48,1.4047]
[1737970769979,4.4344,225.63,225.48,1.4047]
[1737970770277,37.38062312,225.72,225.6,4.435]
[1737970770477,4.4339,225.66,225.51,37.38062312]
[1737970770672,0.02833865,225.58,225.53,0.02984051]
[1737970770878,4.4339,225.66,225.58,4.4354]
[1737970771973,37.38062312,225.72,225.54,1.46]
[1737970772176,0.03353325,225.64,225.6,0.03289724]
[1737970772477,37.38062312,225.68,225.54,1.46]
[1737970772677,0.02978277,225.64,225.6,0.03242074]
[1737970773171,0.02978277,225.64,225.6,4.46742074]
[1737970773371,0.02978277,225.64,225.6,0.03242074]
[1737970773971,4.46398277,225.64,225.6,0.03242074]
[1737970774879,4.4345,225.63,225.6,0.03242074]
[1737970775076,0.02978277,225.64,225.6,0.03242074]
[1737970776682,4.4348,225.61,225.6,0.03242074]
[1737970776977,0.02978277,225.64,225.6,0.03242074]
[1737970778382,4.4348,225.61,225.6,0.03242074]
[1737970778884,0.02978277,225.64,225.56,4.4357]
[1737970779081,0.02978277,225.64,225.54,1.46]
[1737970779383,0.02978277,225.64,225.63,4.4344]
[1737970779681,117.81804833,225.76,225.54,1.46]
[1737970779880,4.4339,225.66,225.54,1.46]
[1737970780081,23.05595694,225.72,225.54,1.46]
[1737970780473,23.05595694,225.72,225.59,4.4351]
[1737970780783,0.03135318,225.65,225.61,0.03166436]
[1737970782083,0.03135318,225.65,225.63,4.4344]
[1737970783084,0.03135318,225.65,225.64,4.4342]
[1737970783279,117.81804833,225.76,225.61,0.03166436]
[1737970783483,117.81804833,225.76,225.54,1.46]
[1737970783679,4.4329,225.71,225.65,4.4339]
[1737970784385,4.46242879,225.7,225.66,0.03295192]
[1737970784584,4.4331,225.7,225.64,4.4342]
[1737970784787,4.4661425,225.7,225.66,0.02953896]
[1737970785189,0.0330425,225.7,225.66,0.02953896]
[1737970786490,0.0330425,225.7,225.68,4.4334]
[1737970786888,0.0330425,225.7,225.67,4.4336]
[1737970787188,0.0330425,225.7,225.66,0.02953896]
[1737970787985,0.0330425,225.7,225.66,4.46313896]
[1737970788180,0.0330425,225.7,225.66,0.02953896]
[1737970789089,0.0330425,225.7,225.67,4.4336]
[1737970789989,0.0330425,225.7,225.69,4.4332]
[1737970790183,23.05595694,225.84,225.66,0.02953896]
[1737970790388,23.05595694,225.84,225.65,23.05595694]
[1737970790389,292.0,225.87,225.65,23.05595694]
[1737970790594,4.4307,225.82,225.77,4.4317]
[1737970791092,71.06280766,225.88,225.65,23.05595694]
[1737970791281,4.4314,225.79,225.77,0.03275853]
[1737970791482,4.4314,225.79,225.73,4.4324]
[1737970791684,4.4318,225.77,225.76,0.03168495]
[1737970791889,4.4318,225.77,225.61,1.4177]
[1737970792191,4.4318,225.77,225.74,0.02865814]
[1737970792391,4.4319,225.76,225.7,4.4328]
[1737970792793,23.05595694,225.84,225.71,0.03309639]
[1737970792991,23.05595694,225.84,225.61,1.4177]
[1737970792992,4.4311,225.81,225.7,4.4329]
[1737970793192,23.05595694,225.84,225.75,0.02938226]
[1737970793591,23.05595694,225.76,225.61,1.4177]
[1737970793891,23.05595694,225.72,225.61,1.4177]
[1737970794895,0.02890072,225.69,225.64,0.03166154]
[1737970795486,23.05595694,225.68,225.64,0.03166154]
[1737970795993,4.434,225.65,225.64,0.03166154]
[1737970796894,4.4338,225.67,225.64,0.03166154]
[1737970797294,0.02890072,225.69,225.64,0.03166154]
[1737970797898,23.05595694,225.84,225.65,3.1]
[1737970798300,23.05595694,225.84,225.66,23.05595694]
[1737970798501,4.4309,225.81,225.7,4.4329]
[1737970798694,71.06280766,225.88,225.65,3.05477423]
[1737970798998,71.06280766,225.88,225.69,23.05595694]
[1737970799201,4.4299,225.87,225.74,0.02819786]
[1737970799499,71.06280766,225.88,225.69,23.05595694]
[1737970799698,4.43,225.86,225.78,0.03279847]
[1737970800394,4.4304,225.84,225.78,0.03279847]
[1737970802400,4.43,225.86,225.78,0.03279847]
[1737970802702,1.3908,225.94,225.78,40.52734448]
[1737970803098,1.3908,225.94,225.79,4.2]
[1737970803301,1.3908,225.94,225.84,0.02850238]
[1737970803696,4.4289,225.91,225.84,4.45870238]
[1737970804202,4.4289,225.91,225.84,0.02850238]
[1737970805299,1.3908,225.94,225.84,0.02850238]
[1737970805907,4.4294,225.89,225.84,0.02850238]
[1737970806101,1.3908,225.94,225.84,0.02850238]
[1737970806702,4.4297,225.88,225.84,0.02850238]
[1737970807301,1.3908,225.94,225.84,0.02850238]
[1737970808106,4.4292,225.9,225.84,4.45880238]
[1737970809006,4.4294,225.89,225.84,0.02850238]
[1737970809599,4.4291,225.9,225.84,4.45880238]
[1737970809805,95.49969139,225.95,225.84,0.02850238]
[1737970811006,38.73874601,226.04,225.84,0.02850238]
[1737970811199,1.3684,226.03,225.84,0.02850238]
[1737970811399,1.3684,226.03,225.81,37.39454601]
[1737970811612,4.4286,225.93,225.91,0.03011327]
[1737970811907,1.3684,226.03,225.91,0.03011327]
[1737970811908,37.39454601,226.0,225.91,0.03011327]
[1737970812702,4.4287,225.92,225.91,0.03011327]
[1737970812901,37.39454601,225.92,225.7,37.39454601]
[1737970813105,37.39454601,225.92,225.71,3.1]
[1737970813301,1.3318,225.91,225.71,3.1]
[1737970813502,0.4108,225.95,225.74,37.39454601]
[1737970813696,0.4108,225.95,225.78,37.39454601]
[1737970813902,37.39454601,226.0,225.78,37.39454601]
[1737970814106,0.03105007,225.89,225.84,0.02809694]
[1737970814306,4.4279,225.97,225.84,0.02809694]
[1737970814503,1.3318,226.01,225.83,3.1]
[1737970815409,4.4284,225.94,225.83,3.1]
[1737970815605,4.4284,225.94,225.9,0.03132121]
[1737970816803,1.3318,226.01,225.9,0.03132121]
[1737970817012,4.4281,225.95,225.9,0.03132121]
[1737970817907,1.3318,226.01,225.9,0.03132121]
[1737970818809,94.76209139,226.02,225.9,0.03132121]
[1737970819211,4.4276,225.98,225.93,4.4284]
[1737970819416,4.4276,225.98,225.93,4.38364616]
[1737970819617,4.4276,225.98,225.93,4.41363231]
[1737970820416,4.4279,225.97,225.93,0.02998615]
[1737970820612,94.76209139,226.02,225.93,0.02998615]
[1737970821512,4.4279,225.96,225.93,0.02998615]
[1737970822013,94.76209139,226.02,225.93,0.02998615]
[1737970823508,4.4279,225.97,225.93,0.02998615]
[1737970824308,4.4281,225.96,225.93,0.02998615]
[1737970824913,4.4277,225.98,225.93,0.02998615]
[1737970825213,94.76209139,226.02,225.93,0.02998615]
[1737970825613,1.4083,226.03,225.93,0.02998615]
[1737970826012,4.4273,226.0,225.94,4.4283]
[1737970826810,4.4274,225.99,225.94,4.4283]
[1737970827013,1.4083,226.03,225.93,0.02998615]
[1737970827311,1.4083,226.03,225.93,4.45848615]
[1737970827614,1.4083,226.03,225.93,0.02998615]
[1737970827915,4.4276,225.98,225.93,0.02998615]
[1737970828412,1.4083,226.03,225.93,0.02998615]
[1737970828816,1.4083,226.03,225.95,4.4281]
[1737970829011,4.427,226.01,225.93,0.02998615]
[1737970829216,292.0,226.06,225.97,4.4276]
[1737970829416,1.4372,226.08,225.88,24.43640442]
[1737970829715,1.4372,226.08,225.99,0.03332263]
[1737970829906,1.4372,226.08,225.99,4.46062263]
[1737970830311,4.4268,226.02,225.99,0.03332263]
[1737970830516,1.4372,226.08,225.99,0.03332263]
[1737970831015,4.427,226.01,225.99,0.03332263]
[1737970831515,1.4372,226.08,225.99,0.03332263]
[1737970831912,4.428,225.96,225.91,4.4287]
[1737970832115,22.97740442,226.06,225.88,1.459]
[1737970832414,22.97740442,226.06,225.88,24.43640442]
[1737970832616,4.4272,226.0,225.94,4.4283]
[1737970833217,0.02868514,225.99,225.95,0.03138773]
[1737970834121,4.45608514,225.99,225.95,0.03138773]
[1737970835421,4.4276,225.98,225.95,0.03138773]
[1737970835814,0.02868514,225.99,225.95,0.03138773]
[1737970836316,0.02868514,225.99,225.97,4.4276]
[1737970836722,0.02868514,225.99,225.95,0.03138773]
[1737970836923,0.02868514,225.99,225.98,4.4275]
[1737970837922,0.02868514,225.99,225.96,4.4278]
[1737970838425,0.02868514,225.99,225.95,0.03138773]
[1737970838617,0.02868514,225.99,225.95,4.45948773]
[1737970838819,0.02868514,225.99,225.95,0.03138773]
[1737970839727,0.02868514,225.99,225.95,4.45948773]
[1737970839920,0.02868514,225.99,225.95,0.03138773]
[1737970841332,0.02868514,225.99,225.98,4.4275]
[1737970841533,1.3975,226.09,225.96,22.97740442]
[1737970841826,4.4259,226.07,226.02,4.4267]
[1737970842527,4.4259,226.07,225.97,2.7892]
[1737970842732,4.4259,226.07,226.02,0.03044319]
[1737970843027,47.9405441,226.14,226.02,0.03044319]
[1737970843731,47.9405441,226.14,226.02,4.45714319]
[1737970844333,4.4257,226.08,226.02,4.45714319]
[1737970844727,47.9405441,226.14,225.97,2.7892]
[1737970845232,47.9405441,226.14,226.0,4.4271]
[1737970845435,47.9405441,226.14,225.97,1.3307]
[1737970845636,47.9405441,226.14,225.92,22.97740442]
[1737970845934,0.02823316,226.04,226.0,0.02967016]
[1737970846330,4.4268,226.02,226.0,0.02967016]
[1737970846537,0.02823316,226.04,226.0,0.02967016]
[1737970847532,2.80633316,226.04,225.87,1.4156]
[1737970847738,14.35520378,226.02,225.92,4.4286]
[1737970848342,14.35520378,225.97,225.85,1.3432]
[1737970848540,22.9912673,225.99,225.85,1.3432]
[1737970848743,0.02991938,225.93,225.89,0.03382786]
[1737970848941,4.45861938,225.93,225.89,0.03382786]
[1737970849241,0.02991938,225.93,225.89,0.03382786]
[1737970850036,4.4289,225.91,225.89,0.03382786]
[1737970850740,22.9912673,225.91,225.79,1.3527]
[1737970851445,22.9912673,225.87,225.75,2.8004]
[1737970851847,4.4306,225.83,225.76,4.4318]
[1737970852145,4.46442501,225.83,225.79,0.03008768]
[1737970852342,4.46432501,225.83,225.79,0.03008768]
[1737970852647,0.03382501,225.83,225.79,0.03008768]
[1737970854045,0.03382501,225.83,225.79,4.46128768]
[1737970854247,0.03382501,225.83,225.79,0.03008768]
[1737970854640,22.9912673,225.96,225.79,0.03008768]
[1737970854947,22.9912673,225.96,225.77,22.9912673]
[1737970855349,4.4285,225.93,225.87,4.4296]
[1737970855547,4.4285,225.93,225.77,22.9912673]
[1737970855747,0.4389,225.97,225.77,22.9912673]
[1737970855943,0.03071337,225.87,225.83,0.02966292]
[1737970856347,0.4389,225.97,225.77,22.9912673]
[1737970856543,0.03053181,225.87,225.83,0.03160868]
[1737970856952,22.9912673,225.92,225.74,0.76737937]
[1737970857153,0.02794541,225.87,225.83,0.02945497]
[1737970858449,25.7357673,226.0,225.83,0.02945497]
[1737970858852,25.7357673,226.0,225.78,0.76711851]
[1737970859159,4.4276,225.98,225.85,4.43]
[1737970859456,25.7357673,226.0,225.79,1.3872]
[1737970859646,25.7357673,226.0,225.8,2.10372572]
[1737970859851,0.03075191,225.94,225.89,0.03301852]
[1737970861353,0.03075191,225.94,225.93,4.4285]
[1737970862251,1.3753,226.05,226.0,4.427]
[1737970862458,22.9912673,226.08,225.91,1.356]
[1737970863052,22.9912673,226.08,226.01,4.4269]
[1737970863257,22.9912673,226.08,225.91,1.356]
[1737970863659,22.9912673,226.08,225.97,0.02978374]
[1737970864156,27.4168673,226.08,226.01,4.4269]
[1737970864757,27.4168673,226.08,226.02,0.03041033]
[1737970864958,27.4168673,226.08,225.99,4.4272]
[1737970865257,27.4168673,226.08,226.03,0.03133268]
[1737970865450,27.4168673,226.08,225.91,1.356]
[1737970866151,22.9912673,226.08,225.91,1.356]
[1737970866557,27.4168673,226.08,225.98,4.4274]
[1737970866860,0.03378152,226.02,225.97,0.03054413]
[1737970867266,22.9912673,226.12,225.91,1.356]
[1737970867563,0.03219591,226.02,225.97,0.03309974]
[1737970867863,22.9912673,226.12,225.91,1.356]
[1737970868158,4.4266,226.04,225.97,4.4277]
[1737970868364,0.03190734,226.02,225.97,4.45687343]
[1737970868765,0.03190734,226.02,225.97,0.02917343]
[1737970869366,7.34e-06,226.02,226.01,4.427]
[1737970879372,7.34e-06,226.02,225.98,4.4275]
[1737970879664,7.34e-06,226.02,225.97,0.02917343]
[1737970880874,22.9912673,226.0,225.82,3.1]
[1737970881066,22.9912673,226.0,225.82,7.2759]
[1737970881372,4.4279,225.97,225.88,4.4295]
[1737970881570,22.9912673,226.0,225.82,7.2759]
[1737970881870,22.9912673,226.0,225.83,0.76683689]
[1737970882072,0.02900846,225.93,225.89,0.02872014]
[1737970883566,0.02900846,225.93,225.91,4.4289]
[1737970883973,0.02900846,225.93,225.89,0.02872014]
[1737970884173,0.02900846,225.93,225.9,4.4291]
[1737970884373,0.02900846,225.93,225.89,0.02872014]
[1737970884866,23.02027576,225.93,225.89,0.02872014]
[1737970885072,23.02027576,225.93,225.73,4.92958834]
[1737970885371,4.4301,225.85,225.79,4.4311]
[1737970885569,22.9912673,225.97,225.76,22.9912673]
[1737970885762,22.9912673,226.01,225.76,22.9912673]
[1737970886270,0.02927706,225.91,225.86,0.03105789]
[1737970886468,22.9912673,226.01,225.8,22.9912673]
[1737970886675,4.4283,225.95,225.89,4.4291]
[1737970886865,0.03245039,225.89,225.83,14.36351075]
[1737970887067,15.69671075,226.03,225.9,0.03091348]
[1737970887270,4.4269,226.02,225.95,4.4281]
[1737970888276,14.36351075,225.98,225.96,0.02975246]
[1737970888473,14.36351075,225.98,225.86,3.1]
[1737970888775,4.4293,225.89,225.75,14.36351075]
[1737970888976,14.36351075,225.96,225.76,0.76805129]
[1737970889375,4.4287,225.92,225.76,0.76805129]
[1737970889573,0.03292408,225.88,225.84,0.03258101]
[1737970890677,0.03292408,225.88,225.86,4.4299]
[1737970891179,0.03292408,225.88,225.84,0.03258101]
[1737970893679,4.46262408,225.88,225.84,0.03258101]
[1737970894581,0.03292408,225.88,225.84,0.03258101]
[1737970894881,0.03292408,225.88,225.73,1.3281]
[1737970895081,4.4306,225.83,225.77,4.4317]
[1737970895479,14.36351075,225.85,225.73,1.3281]
[1737970895781,14.36351075,225.88,225.73,1.3281]
[1737970895980,0.03211702,225.81,225.77,0.02801681]
[1737970896182,0.03211702,225.81,225.8,4.4309]
[1737970896583,14.36351075,225.91,225.77,0.02801681]
[1737970896783,4.4285,225.94,225.88,4.4295]
[1737970896987,14.36351075,225.95,225.8,2.8273]
[1737970897385,4.4287,225.92,225.84,4.4302]
[1737970897582,4.4287,225.92,225.8,2.8273]
[1737970897885,0.03309837,225.9,225.86,0.03055572]
[1737970899787,4.4297,225.87,225.86,0.03055572]
[1737970899987,4.4297,225.87,225.73,1.4447]
[1737970900187,1.3273,225.9,225.73,1.4447]
[1737970900389,22.99541627,225.96,225.74,22.99541627]
[1737970900686,22.99541627,225.96,225.75,0.76964954]
[1737970900881,4.4287,225.92,225.86,4.4298]
[1737970901082,4.4287,225.92,225.87,0.03323013]
[1737970901386,0.02894756,225.91,225.87,0.03323013]
[1737970901883,4.45784756,225.91,225.87,0.03323013]
[1737970902089,0.02894756,225.91,225.87,0.03323013]
[1737970902293,22.99541627,225.88,225.73,1.4447]
[1737970902588,4.4303,225.84,225.76,4.4318]
[1737970902789,4.4303,225.84,225.73,1.4447]
[1737970902989,22.99541627,225.88,225.73,1.4447]
[1737970903487,26.09541627,225.96,225.78,0.03139202]
[1737970903488,0.02837483,225.83,225.78,0.03139202]
[1737970903679,0.02837483,225.83,225.79,4.4312]
[1737970903880,4.4299,225.86,225.73,1.4447]
[1737970904083,22.99541627,225.92,225.79,0.03156727]
[1737970904084,0.02923217,225.83,225.79,0.03156727]
[1737970904291,22.99541627,225.92,225.79,0.03156727]
[1737970904481,0.03035726,225.83,225.79,0.03156727]
[1737970904681,22.99541627,225.96,225.75,0.77012609]
[1737970904885,0.03109564,225.83,225.77,4.46127411]
[1737970905191,22.99541627,225.96,225.74,22.99541627]
[1737970905381,0.02870257,225.82,225.81,4.4309]
[1737970905588,22.99541627,225.96,225.74,22.99541627]
[1737970905891,0.02858415,225.84,225.83,4.4305]
[1737970906089,1.4504,225.98,225.8,3.1]
[1737970906286,1.4504,225.98,225.82,22.99541627]
[1737970906488,1.4504,225.98,225.93,4.4284]
[1737970906994,117.75750766,226.04,225.83,2.8612]
[1737970907293,4.4272,226.0,225.94,4.4282]
[1737970907491,0.02796304,225.95,225.94,4.4282]
[1737970907889,0.02796304,225.95,225.92,0.03258533]
[1737970908092,0.02796304,225.95,225.83,2.8612]
[1737970908290,0.02796304,225.95,225.87,0.02885445]
[1737970909793,0.02796304,225.95,225.93,4.4284]
[1737970910294,0.02796304,225.95,225.92,0.02856298]
[1737970910496,0.02796304,225.95,225.84,0.76751957]
[1737970910694,0.02796304,225.95,225.91,0.03394038]
[1737970910891,0.02796304,225.95,225.91,23.02935665]
[1737970911088,0.4682,226.13,226.05,4.4262]
[1737970911289,2.7795,226.18,225.99,22.99541627]
[1737970911491,2.7795,226.18,226.0,1.4358]
[1737970911691,4.4239,226.17,226.1,4.4251]
[1737970911995,2.7795,226.18,226.0,1.4358]
[1737970912198,4.4244,226.15,226.11,0.03262086]
[1737970912788,0.02961498,226.15,226.11,0.03262086]
[1737970912992,4.4245,226.14,226.11,0.03262086]
[1737970913397,0.02961498,226.15,226.11,0.03262086]
[1737970913592,4.4247,226.13,226.11,0.03262086]
[1737970913794,4.4247,226.13,226.11,2.086e-05]
[1737970915801,0.4936,226.12,226.11,2.086e-05]
[1737970915996,4.4259,226.07,225.94,1.3897]
[1737970916201,0.4936,226.12,225.98,4.4274]
[1737970916404,23.48901627,226.12,225.94,1.3897]
[1737970916602,23.48901627,226.12,225.93,1.4121]
[1737970916603,4.4269,226.02,225.93,1.4121]
[1737970917203,0.03318762,226.0,225.95,0.02834979]
[1737970917808,0.03318762,226.0,225.95,4.45644979]
[1737970918607,0.03318762,226.0,225.95,0.02834979]
[1737970919304,4.46048762,226.0,225.95,0.02834979]
[1737970919906,0.03318762,226.0,225.95,0.02834979]
[1737970920100,4.4278,225.97,225.95,0.02834979]
[1737970920302,0.03318762,226.0,225.95,0.02834979]
[1737970921606,4.4279,225.96,225.95,0.02834979]
[1737970921808,23.02860389,226.0,225.85,3.08]
[1737970922007,22.99541627,226.0,225.85,3.08]
[1737970922308,4.4292,225.9,225.84,4.4303]
[1737970922503,22.99541627,225.96,225.75,2.8588]
[1737970922710,3.08,226.01,225.75,2.8588]
[1737970922711,22.99541627,225.92,225.75,4.2869]
[1737970922908,0.02821668,225.88,225.83,0.03265818]
[1737970925012,4.4299,225.86,225.83,0.03265818]
[1737970925311,23.02363295,225.88,225.7,22.99541627]
[1737970925511,1.3729,225.85,225.7,22.99541627]
[1737970925712,1.3729,225.85,225.66,26.09541627]
[1737970926117,1.3729,225.85,225.67,0.77018499]
[1737970926311,4.4304,225.84,225.72,4.4326]
[1737970926613,0.02870572,225.78,225.74,0.03112558]
[1737970927113,0.02870572,225.78,225.75,4.432]
[1737970927310,0.02870572,225.78,225.74,0.03112558]
[1737970928014,0.02870572,225.78,225.74,4.46322558]
[1737970928214,0.02870572,225.78,225.74,0.03112558]
[1737970928813,0.02870572,225.78,225.76,4.4319]
[1737970930317,0.02870572,225.78,225.74,0.03112558]
[1737970931615,0.02870572,225.78,225.76,4.4318]
[1737970931817,0.02870572,225.78,225.74,0.03112558]
[1737970933118,4.4321,225.75,225.74,0.03112558]
[1737970933813,4.4329,225.71,225.59,28.11636086]
[1737970934018,22.99541627,225.76,225.59,10.44873576]
[1737970934517,22.99541627,225.76,225.56,24.50046022]
[1737970934518,4.4335,225.68,225.56,24.50046022]
[1737970934719,22.99541627,225.76,225.56,24.50046022]
[1737970934920,4.4339,225.66,225.6,4.435]
[1737970935118,4.4339,225.66,225.65,0.03269331]
[1737970935420,0.030231,225.69,225.65,0.03269331]
[1737970935919,4.4334,225.68,225.65,0.03269331]
[1737970936618,0.030231,225.69,225.65,0.03269331]
[1737970937821,0.030231,225.69,225.68,4.4334]
[1737970938615,0.030231,225.69,225.68,4.3869271]
[1737970940222,4.4317,225.77,225.72,4.4325]
[1737970940423,386.76209139,226.05,225.75,22.99541627]
[1737970940617,3.2804,225.95,225.75,22.99541627]
[1737970941422,0.02820761,225.87,225.83,0.03145361]
[1737970942221,4.4301,225.85,225.83,0.03145361]
[1737970943322,4.4305,225.83,225.69,3.1]
[1737970943725,22.99541627,225.84,225.74,4.4322]
[1737970944524,0.03337913,225.81,225.77,0.03196071]
[1737970945120,4.46427913,225.81,225.77,0.03196071]
[1737970946124,4.4311,225.8,225.77,0.03196071]
[1737970946527,0.03337913,225.81,225.77,0.03196071]
[1737970947528,4.4311,225.8,225.77,0.03196071]
[1737970948230,4.4311,225.8,225.66,1.3256]
[1737970948231,22.99541627,225.8,225.66,1.3256]
[1737970948430,0.03337913,225.81,225.56,22.99541627]
[1737970948431,22.99541627,225.76,225.61,1.4206]
[1737970948825,22.99541627,225.76,225.66,4.4338]
[1737970949123,22.99541627,225.76,225.61,1.4206]
[1737970949326,4.4325,225.73,225.65,4.4339]
[1737970949524,0.03369448,225.71,225.66,0.03283048]
[1737970949929,4.4336,225.67,225.66,0.03283048]
[1737970951522,4.4332,225.7,225.66,0.03283048]
[1737970952219,4.4333,225.69,225.66,0.03283048]
[1737970952832,0.03369448,225.71,225.66,0.03283048]
[1737970953026,4.4336,225.67,225.66,0.03283048]
[1737970953330,0.03369448,225.71,225.66,0.03283048]
[1737970954228,22.99541627,225.68,225.47,22.99541627]
[1737970954431,22.99541627,225.68,225.51,1.3497]
[1737970954731,22.99541627,225.64,225.51,1.3497]
[1737970955526,0.02989849,225.6,225.55,0.03194894]
[1737970956127,0.02989849,225.6,225.55,4.46794894]
[1737970956330,0.02989849,225.6,225.55,0.03194894]
[1737970957130,0.02989849,225.6,225.56,4.4357]
[1737970957323,0.02989849,225.6,225.55,0.03194894]
[1737970957631,0.02989849,225.6,225.57,4.4355]
[1737970958427,0.02989849,225.6,225.55,0.03194894]
[1737970958725,23.02531476,225.6,225.55,0.03194894]
[1737970958932,23.02531476,225.6,225.48,1.3847]
[1737970959830,23.02531476,225.6,225.48,5.822]
[1737970960034,22.99541627,225.56,225.52,0.03028863]
[1737970960233,22.99541627,225.56,225.44,1.4122]
[1737970960631,22.99541627,225.52,225.41,1.3492]
[1737970960838,4.4372,225.5,225.43,4.4383]
[1737970961333,22.99541627,225.52,225.43,4.4383]
[1737970961523,4.46893436,225.49,225.44,0.03122649]
[1737970962531,0.03173436,225.49,225.44,0.03122649]
[1737970962932,0.03173436,225.49,225.47,4.4374]
[1737970963329,0.03173436,225.49,225.47,4.39302767]
[1737970963635,0.03173436,225.49,225.48,4.4374]
[1737970963835,22.99541627,225.64,225.45,3.1]
[1737970964038,191.0,225.65,225.48,22.99541627]
[1737970964328,22.99541627,225.68,225.49,2.7089]
[1737970964532,22.99541627,225.63,225.49,2.7089]
[1737970964724,22.99541627,225.59,225.49,2.7089]
[1737970965129,0.02942347,225.56,225.52,0.03385293]
[1737970967440,0.02942347,225.56,225.55,4.436]
[1737970967638,0.02942347,225.56,225.52,0.03385293]
[1737970967834,0.02942347,225.56,225.52,4.47045293]
[1737970968035,0.02942347,225.56,225.52,0.03385293]
[1737970969543,0.02942347,225.56,225.54,4.4361]
[1737970969933,0.02942347,225.56,225.52,0.03385293]
[1737970970434,25.77301627,225.71,225.52,0.03385293]
[1737970970639,25.77301627,225.71,225.63,4.4344]
[1737970970842,4.4332,225.69,225.49,25.70431627]
[1737970971240,4.4332,225.69,225.55,4.436]
[1737970971441,4.4332,225.69,225.53,22.99541627]
[1737970971442,5.772,225.73,225.57,0.03150882]
[1737970971640,1.3394,225.73,225.53,22.99541627]
[1737970972041,4.4332,225.69,225.53,22.99541627]
[1737970972342,4.4332,225.69,225.64,4.4341]
[1737970972841,0.0335678,225.69,225.67,4.4336]
[1737970974243,0.0335678,225.69,225.64,0.0313168]
[1737970975346,0.0335678,225.69,225.66,4.4337]
[1737970976246,0.0335678,225.69,225.64,0.0313168]
[1737970976438,0.0335678,225.69,225.68,4.4334]
[1737970976944,0.0335678,225.69,225.66,4.4338]
[1737970977144,0.0335678,225.69,225.64,0.0313168]
[1737970977944,0.0335678,225.69,225.65,4.434]
[1737970978144,0.0335678,225.69,225.64,0.0313168]
[1737970979340,0.0335678,225.69,225.68,4.4334]
[1737970981851,0.0335678,225.69,225.64,0.0313168]
[1737970982454,4.4338,225.66,225.64,0.0313168]
[1737970982655,0.0335678,225.69,225.64,0.0313168]
[1737970983450,0.0335678,225.69,225.66,4.4338]
[1737970983751,0.0335678,225.69,225.64,0.0313168]
[1737970984053,22.99541627,225.67,225.54,4.436]
[1737970984357,22.99541627,225.62,225.49,2.783]
[1737970984554,27.43021627,225.62,225.55,4.4358]
[1737970984762,22.99541627,225.62,225.55,4.4358]
[1737970985059,0.03148844,225.61,225.56,0.03240355]
[1737970985557,4.4354,225.59,225.56,0.03240355]
[1737970985759,0.03148844,225.61,225.56,0.03240355]
[1737970986765,22.99541627,225.58,225.39,3.08]
[1737970987060,4.4368,225.51,225.43,4.4383]
[1737970987556,4.4366,225.53,225.44,4.4381]
[1737970987861,0.0311471,225.51,225.46,0.03103715]
[1737970988763,4.4373,225.49,225.46,0.03103715]
[1737970989667,22.99541627,225.5,225.46,0.03103715]
[1737970989869,4.4680471,225.51,225.46,0.03103715]
[1737970990567,0.0311471,225.51,225.46,0.03103715]
[1737970990968,22.99541627,225.62,225.46,3.11103715]
[1737970991169,27.43001627,225.62,225.55,4.4359]
[1737970991369,22.99541627,225.62,225.47,1.3615]
[1737970992166,0.02882687,225.57,225.52,0.03351711]
[1737970993072,22.99541627,225.54,225.41,1.3867]
[1737970993467,22.99541627,225.58,225.41,1.3867]
[1737970994372,0.03332112,225.52,225.47,0.02911411]
[1737970995873,0.03332112,225.52,225.5,4.437]
[1737970996073,0.03332112,225.52,225.47,0.02911411]
[1737970997673,0.03332112,225.52,225.51,4.4368]
[1737970998068,4.4352,225.6,225.48,1.4399]
[1737970998275,4.4352,225.6,225.54,4.4361]
[1737970998471,1.321,225.64,225.48,1.4399]
[1737970998676,1.321,225.64,225.48,4.5399]
[1737970999276,0.03268419,225.58,225.54,4.46872027]
[1737971000175,4.46818419,225.58,225.54,0.03272027]
[1737971000573,0.03268419,225.58,225.54,0.03272027]
[1737971001574,0.03268419,225.58,225.54,4.46892027]
[1737971001971,0.03268419,225.58,225.54,0.03272027]
[1737971002171,4.46808419,225.58,225.54,0.03272027]
[1737971002371,0.03268419,225.58,225.54,0.03272027]
[1737971002780,0.03268419,225.58,225.56,4.4357]
[1737971003074,0.03268419,225.58,225.54,0.03272027]
[1737971003275,8.419e-05,225.58,225.57,4.4356]
[1737971005476,4.4321,225.75,225.69,4.4331]
[1737971005777,22.99541627,225.76,225.61,3.08]
[1737971005977,22.99541627,225.76,225.66,4.4338]
[1737971006580,0.0318068,225.73,225.69,0.02845048]
[1737971006775,22.99541627,225.72,225.61,3.08]